Cogmind - Beta 14 @@@ ROGUE MODE // 2024.12.24 @ 10:10:41 Player: hoganstuff Result: Destroyed by D-53 Grenadier with Mini Grenade Launcher Performance ------------- Evolutions (0) 0 Regions Visited (2) 400 Robots Destroyed (17) 85 Value Destroyed (364) 364 Prototype IDs (0) 0 Alien Tech Used (0) 0 Bonus (-115) -115 TOTAL SCORE: 734 Bonus ------- Friendly Fire -115 Cogmind --------- Core Integrity 0/250 Matter 248/300 Energy 100/100 System Corruption 0% Temperature Cool (0) Movement Core (400) Ox7 Location -10/Mines Parts ------- > --- POWER (1) -------- (None) > --- PROPULSION (2) --- (None) > --- UTILITY (2) ------ Large Storage Unit > --- WEAPON (2) ------- Grenade Launcher > --- INVENTORY (15) --- Light Nuclear Core Light Treads Light Treads Heat Sink Medium Storage Unit Light Armor Plating Beam Rifle Beam Rifle Beam Rifle Mining Laser Peak State ------------ > --- POWER ------------ Ion Engine > --- PROPULSION ------- Light Treads Light Treads > --- UTILITY ---------- Small Storage Unit Targeting Computer > --- WEAPON ----------- Beam Rifle Beam Rifle > --- INVENTORY -------- Ion Engine Light Treads Heat Sink Core Shielding Beam Rifle Beam Rifle Light Assault Rifle Grenade Launcher [Rating: 10] Favorites ----------- Power Ion Engine Engine Ion Engine Propulsion Light Treads Treads Light Treads Utility Targeting Computer Storage Small Storage Unit Processor Targeting Computer Protection Core Shielding Weapon Beam Rifle Energy Gun Beam Rifle Ballistic Gun Light Assault Rifle Launcher Grenade Launcher Build | -11 -10 -10 ------- Run | Yrd Mat Min Slots Evolved . | . . . Power . | . . . Propulsion . | . . . Utility . | . . . Weapon . | . . . Parts Attached 20 | 7 11 2 Power 1 | 1 . . Engine 1 | 1 . . Core . | . . . Reactor . | . . . Propulsion 6 | 2 4 . Treads 6 | 2 4 . Leg . | . . . Wheel . | . . . Hover . | . . . Flight . | . . . Utility 6 | 1 5 . Device . | . . . Storage 4 | 1 3 . Processor 1 | . 1 . Hackware . | . . . Protection 1 | . 1 . Artifact . | . . . Weapon 7 | 3 2 2 Energy Gun 4 | 2 2 . Energy Cannon . | . . . Ballistic Gun 1 | 1 . . Ballistic Cannon . | . . . Launcher 2 | . . 2 Special Weapon . | . . . Impact Weapon . | . . . Slashing Weapon . | . . . Piercing Weapon . | . . . Special Melee Weapon . | . . . Unidentified Prototypes . | . . . Parts Lost 6 | . . 6 Power 1 | . . 1 Propulsion 2 | . . 2 Utility 1 | . . 1 Weapon 2 | . . 2 Highest Loss Streak 6 | . . 6 To Critical Strikes . | . . . Average Slot Usage (%) 99 | . 99 97 Engine 13 | . 14 13 Treads 27 | . 28 27 Storage 11 | . 11 14 Processor 13 | . 13 13 Protection 2 | . 2 . Energy Gun 26 | . 26 27 Ballistic Gun 1 | . 1 . Peak Build Rating 10 | 6 10 10 Average Rating 8 | 4 9 9 On Entrance 5 | . 6 10 Naked Turns . | . . . Heaviest Build 31 | 13 31 31 Greatest Support 40 | 40 40 40 Greatest Overweight (x) . | . . . Average Overweight (x) . | . . . Largest Inventory Capacity 15 | 8 15 15 Average Capacity 9 | 6 8 15 Most Carried 11 | 2 11 11 Average Carried 7 | 1 6 10 Final Capacity 15 | 8 15 15 Final Carried 11 | 2 11 10 Class Distribution -------------------- 100% | Mutant Dominant Class ---------------- Mutant | -10/Materials Mutant | -10/Mines Resources | -11 -10 -10 ----------- Run | Yrd Mat Min Matter Collected 378 | 201 177 . Remotely . | . . . Salvage Created 533 | . 429 104 Parts 28 | . 26 2 Haulers Intercepted 1 | . 1 . Recyclers Shooed . | . . . Parts Field Recycled . | . . . Retrieved Matter . | . . . Parts Self-Destructed . | . . . Prevented . | . . . Kills | -11 -10 -10 ------- Run | Yrd Mat Min Combat Hostiles Destroyed 12 | . 10 2 Guns 12 | . 10 2 Classes Destroyed 6 | . 5 1 Hauler 1 | . 1 . Recycler 1 | . 1 . Watcher 2 | . 2 . Swarmer 5 | . 5 . Grunt 7 | . 5 2 Guerrilla 1 | . . 1 Best Kill Streak 4 | . 4 2 Combat Bots Only 3 | . 3 2 Max Kills in Single Turn 1 | . 1 1 Gunslinging . | . . . Exploded . | . . . Melee . | . . . Uniques/NPCs Destroyed . | . . . Combat | -11 -10 -10 -------- Run | Yrd Mat Min Hostile Shots Fired 62 | . 39 23 Missed 14 | . 11 3 Damage Taken 897 | . 255 642 Core 250 | . 43 207 Absorbed by Shields . | . . . Core Remaining (%) 100 | 100 . . Volleys Fired 35 | . 25 10 Largest 2 | . 2 2 Hottest 112 | . 112 112 Shots Fired 67 | . 50 17 Gun 62 | . 50 12 Cannon . | . . . Launcher 5 | . . 5 Special . | . . . Kinetic 1 | . 1 . Thermal 61 | . 49 12 Explosive 5 | . . 5 Electromagnetic . | . . . Robot Hit Streak 9 | . 9 8 Robot Miss Streak 4 | . 4 3 Penetration Max . | . . . Secondary Targets . | . . . Shots Hit Robots 36 | . 25 11 Core Hits 27 | . 17 10 Critical Kills . | . . . Critical Parts Destroyed . | . . . Critical Strikes 4 | . 3 1 Burn 4 | . 3 1 Melee Attacks . | . . . Impact . | . . . Slashing . | . . . Piercing . | . . . Sneak Attacks . | . . . Combat Hostiles . | . . . Follow-up Attacks . | . . . Damage Inflicted 590 | . 384 206 Guns 504 | . 376 128 Cannons . | . . . Explosions 78 | . . 78 Melee . | . . . Ramming 8 | . 8 . Kinetic . | . . . Thermal 504 | . 376 128 Explosive 78 | . . 78 Electromagnetic . | . . . Impact . | . . . Slashing . | . . . Piercing . | . . . Highest Corruption . | . . . Average Corruption . | . . . Corruption Purged . | . . . Corruption Blocked . | . . . Overload Shots . | . . . Overflow Damage . | . . . Projectiles . | . . . Explosions . | . . . Melee . | . . . Knockbacks . | . . . Impact . | . . . Kinetic . | . . . Secondary . | . . . Self-Inflicted Damage 4 | . . 4 Shots 1 | . . 1 Rammed 3 | . 3 . Targets Rammed 3 | . 3 . Kicked . | . . . Crushed . | . . . Highest Temperature 252 | . 171 252 Average Temperature 70 | . 63 98 Received Heat Transfer 132 | . 84 48 Siege Activations . | . . . Robots Corrupted . | . . . Combat Hostiles . | . . . Parts Fried . | . . . Impact Corruptions . | . . . Robots Melted . | . . . Combat Hostiles . | . . . Parts Melted 7 | . 6 1 Heat Transferred 1591 | . 1184 407 Parts Sabotaged . | . . . Parts Stolen . | . . . Parts Stripped . | . . . Power Chain Reactions . | . . . Alert | -11 -10 -10 ------- Run | Yrd Mat Min Peak Influence 301 | . 301 108 Initial 58 | . . 58 Average 94 | . 100 104 Maximum Alert Level 1 | . 1 . Low Security (%) 87 | 100 83 100 Level 1 12 | . 16 . Level 2 . | . . . Level 3 . | . . . Level 4 . | . . . Level 5 . | . . . High Security . | . . . Max Security . | . . . Squads Dispatched 2 | . 2 . Investigation 1 | . 1 . Extermination . | . . . Reinforcement 1 | . 1 . Assault . | . . . Garrison . | . . . Intercept . | . . . Searches Triggered . | . . . Construction Impeded . | . . . Haulers Reinforced . | . . . Active Scanning Responses . | . . . Cargo Convoy Interrupts . | . . . Stealth | -11 -10 -10 --------- Run | Yrd Mat Min Distress Signals 1 | . 1 . Communications Jammed . | . . . Distress Signals . | . . . Times Spotted 25 | . 19 6 Peak Tracking Total 3 | . 3 3 Tactical Retreats 1 | . 1 . Traps | -11 -10 -10 ------- Run | Yrd Mat Min Traps Triggered 1 | . 1 . Indirectly . | . . . Trap Hack Attempts . | . . . Triggered . | . . . Disarmed . | . . . Reprogrammed . | . . . Reused . | . . . Traps Extracted . | . . . Installed . | . . . Triggered . | . . . Machines | -11 -10 -10 ---------- Run | Yrd Mat Min Machines Disabled 2 | . 2 . Max in Single Turn 1 | . 1 . Machines Repaired . | . . . Machines Dismantled . | . . . Machines Sabotaged . | . . . Overloaded Fab Kills . | . . . Hacking | -11 -10 -10 --------- Run | Yrd Mat Min Machines Accessed 7 | . 7 . Terminals 6 | . 6 . Fabricators . | . . . Repair Stations . | . . . Recycling Units 1 | . 1 . Scanalyzers . | . . . Garrison Access . | . . . Total Hacks 12 | . 12 . Successful 2 | . 2 . Failed 10 | . 10 . Catastrophic 5 | . 5 . Database Lockouts . | . . . Manual 8 | . 8 . Terminals 9 | . 9 . Fabricators . | . . . Repair Stations . | . . . Recycling Units 3 | . 3 . Scanalyzers . | . . . Garrison Access . | . . . Terminal Hacks 1 | . 1 . Dispatch Records 1 | . 1 . Fabricator Hacks . | . . . Repair Station Hacks . | . . . Recycling Unit Hacks 1 | . 1 . Report Inventory 1 | . 1 . Scanalyzer . | . . . Garrison Access Hacks . | . . . Unauthorized Hacks . | . . . Terminals . | . . . Fabricators . | . . . Repair Stations . | . . . Recycling Units . | . . . Scanalyzers . | . . . Garrison Access . | . . . Data Cores Recovered . | . . . Used . | . . . Hacking Detections 7 | . 7 . Full Trace Events . | . . . Feedback Events . | . . . Feedback Blocked . | . . . Robot Schematics Acquired . | . . . Robots Built . | . . . Authchips . | . . . Time . | . . . Total Robot Build Rating . | . . . Part Schematics Acquired . | . . . Parts Built . | . . . Authchips . | . . . Time . | . . . Total Part Build Rating . | . . . Parts Repaired . | . . . Time . | . . . Parts Recycled . | . . . Recycled Matter . | . . . Retrieved Matter . | . . . Retrieved Components . | . . . Parts Scanalyzed . | . . . Part Schematics Acquired . | . . . Parts Damaged . | . . . Bothacking | -11 -10 -10 ------------ Run | Yrd Mat Min Used RIF Installer . | . . . Robots Hacked . | . . . Non-combat . | . . . Combat . | . . . Robot Hacks Applied . | . . . Relay Couplers Released . | . . . Fabnet Peak Effective % . | . . . Robots Rewired . | . . . Allies Hacked . | . . . Hacks Repelled . | . . . Allies | -11 -10 -10 -------- Run | Yrd Mat Min Total Allies . | . . . Largest Group . | . . . Highest-Rated Group . | . . . Highest-Rated Ally . | . . . Total Orders . | . . . Ally Attacks . | . . . Total Damage . | . . . Kills . | . . . Allies Corrupted . | . . . Allies Melted . | . . . Intel | -11 -10 -10 ------- Run | Yrd Mat Min Robot Analysis Total . | . . . Derelict Logs Recovered 1 | . . 1 Drone Launches . | . . . Drone Recoveries . | . . . Exploration | -11 -10 -10 ------------- Run | Yrd Mat Min Turns Passed 1147 | 75 869 203 Spaces Moved 594 | 44 442 108 Core 6 | 6 . . Treads 588 | 38 442 108 Legs . | . . . Wheels . | . . . Hover . | . . . Flight . | . . . Fastest Speed 50 | 50 160 160 Average Speed 158 | 145 160 160 Slowest Speed 160 | 160 160 160 Overloaded Moves . | . . . Propulsion Burnouts . | . . . Robots Hopped . | . . . Cave-ins Triggered . | . . . Exploration Rate (%) 35 | 4 68 33 Regions Visited 2 Branch Regions 1 Pre-discovered Areas 1 | . . 1 Known Exits Taken . | . . . Unknown Exits Taken 2 | 1 1 . Scrap Searched 1 | . . 1 Spaces Dug . | . . . Terrain Destroyed 30 | . . 30 Melee . | . . . Projectile . | . . . AOE 30 | . . 30 Terrain Rammed . | . . . Walls Destroyed . | . . . Machines Disabled . | . . . Actions | -11 -10 -10 --------- Run | Yrd Mat Min Total 729 | 53 554 122 Wait 50 | . 50 . Move 592 | 43 441 108 Hop . | . . . Pick Up 16 | 2 13 1 Fast Attach 8 | 6 2 . Attach 2 | 1 . 1 Detach 2 | 1 1 . Swap 10 | . 9 1 Drop 11 | . 10 1 Fire 35 | . 25 10 Melee . | . . . Ram . | . . . Kick . | . . . Crush 3 | . 3 . Escape Stasis . | . . . Rewire . | . . . Trap . | . . . Miscellaneous . | . . . Route ------- -11/Scrapyard -10/Materials (discovered 3 exits: [*Mat] / [*Min x2]) -10/Mines History --------- Turn | Location | Event 11 | -11/Scrapyard | Discovered new exit (range 14) 76 | -11/Scrapyard | Entered Materials 269 | -10/Materials | Discovered new exit (range 15) 327 | -10/Materials | Build established: Mutant 518 | -10/Materials | Discovered new exit (range 10) 640 | -10/Materials | Discovered new exit (range 13) 945 | -10/Materials | Entered Mines 1029 | -10/Mines | Found a hidden stash of uninstalled traps 1089 | -10/Mines | Received a Rocket Launcher from a helpful Derelict 1123 | -10/Mines | Assembled infested the area 1128 | -10/Mines | Assisted by a Guerilla fighting off Assembled 1130 | -10/Mines | Learned location of Storage (-7) 1140 | -10/Mines | Core integrity fell below 50% 1146 | -10/Mines | Core integrity fell below 20% 1148 | -10/Mines | Destroyed by D-53 Grenadier with Mini Grenade Launcher Last Messages --------------- 01134_ G-34 Mercenary knocked back. 01134_ Lgt. Treads destroyed. 01134_ Targeting Computer destroyed. 01135_ Ion Engine destroyed. 01136_ G-34 Mercenary destroyed. 01136_ T-07 Excavator destroyed. 01136_ AC-TMQ(h) destroyed. [Achievement: Backstab] 01139_ The unstable cave ceiling collapses. 01141_ Rocket Launcher destroyed. 01143_ Beam Rifle destroyed. 01145_ The unstable cave ceiling collapses. 01145_ U-05 Engineer lays Concrete. 01146_ The unstable cave ceiling collapses. 01146_ U-05 Engineer lays Concrete. 01146_ K-01 Serf collects debris. 01147_ The unstable cave ceiling collapses. 01147_ U-05 Engineer lays Concrete. 01147_ Lgt. Treads destroyed. 01148_ The unstable cave ceiling collapses. Map ----- +----------------------------------------------------+ | ????#[#### ###????## && #???????????? | | ????#%#??# #?????## ##???????????? | | ????#!#??# #?????# #####????????????? | | ????#!#### ###???# ## ####????????????????? | | ????# ## #???# ######???????????????????? | | ???## ## = #???# ##????????????????????????? | | ???# !% #???# #######???????????????????? | | ???# #???# #???????????????????? | | ???# ### %#??# ### #???????####????????? | | ???# #?# #?# #?# #??????## ##???????? | | ???# #?# #?# #?# #??????# #???????? | | ???# #?#######?# ##?# #??????# ##??????? | | ???# ?????????## ##??# #?????## ####???? | | ???###??????????####???# #???### ! ##??? | | ???????????????????????# #??## ##?? | | ???????????????????????# #?## #?? | | ?????????????????????### ### ### #?? | | ????????????????????## ##?## #?? | | ????????????????????# #####???# #?? | | ????????????????????# ##???????# ##?? | | ????????????????????## u ##????????## ##??? | | ?????????????????????# ##??????????###???? | | ????????????????????## ###??????????????? | | ????????????????????# ####???????????? | | ????????????????????## #???????????? | | ????????????????????# @# #?????????? | | ????????????????????# ""??????? | | ????????????????????# d % ""??????? | | ????????????????????## ""??????? | | ?????????????????????## # ??????? | | ??????????????????????### #?????????? | | ????????????????????????# [%! #?????????? | | ????????????????????????# = #?????????? | | ????????????????????????# ##?????????? | | ?????????????????????????# k ### ##??????????? | | ?????????????????????????## #??###???????????? | | ??????????????????????????? #????????????????? | | ??????????????????????????? ????????????????? | | ???????????????????????????k #????????????????? | | ??????????????????????????? #????????????????? | | ??????????????????????????? #????????????????? | | ??????????????????????????? #?????????????????? | | ??????????????????????????? ??????????????????? | | ??????????????????????????????????????????????? | | ??????????????????????????????????????????????? | | ??????????????????????????????????????????????? | | ??????????????????????????????????????????????? | | ??????????????????????????????????????????????? | | ??????????????????????????????????????????????? | | ??????????????????????????????????????????????? | +----------------------------------------------------+ Best States ------------- Heat Dissipation 25 Energy Generation 10 Energy Capacity 250 Matter Stores 300 Matter Capacity 300 Sight Range 16 Terrain Scan Density 10 Core Shielding 20 Evasion (%) 40 Targeting Accuracy 5 Recoil Reduction 2 Item Schematics ----------------- None Robot Schematics ------------------ None Fabricated ------------ Nothing Alien Tech Used ----------------- None Achievements -------------- Backstab Challenges ------------ None Game ------ Seed ChargeSegregatorRigger Manual? 0 Play Time 00:21:48 Cumulative 24.0 hours Start 2024.11.30 @ 01:14:50 End 2024.12.24 @ 10:10:41 Sessions 2 Manual Loads 0 Difficulty Rogue Special Mode None Game No. 17 Rogue 11 Adventurer 6 Explorer 0 Win Type - Total 0 Types 0/0/0/0/0/0/0/0/0 Lore% 11 Gallery% 23 Achievement% 20 Wizard Run 0 Options --------- Layout 1 ASCII 0 Keyboard 0 Movement Arrows Keybinds 0 Fullscreen 1 Font 24/Terminus Map View 50x35 Zoom Use 0% Tactical HUD 1 Map Filters NONE Filters NONE Steam 1 RUN: 1018ec8e-709d-4d96-ab73-0fcc1cf59c02